fUST/lending_fUST_20250131
["ID","MTS","AMOUNT","RATE_DAILY","PERIOD"]
[351033944,1738302647595,-1199.42,0.00016849,2]
[351033946,1738302647605,-638.87,0.00016849,2]
[351033948,1738302647615,-783.73,0.00016849,2]
[351033949,1738302647623,-567.6,0.00016849,2]
[351033951,1738302647632,-500.0,0.00016849,2]
[351033952,1738302647641,-500.0,0.00016849,2]
[351033954,1738302647651,-4491.12,0.00016849,2]
[351033955,1738302647660,-809.64,0.00016849,2]
[351033956,1738302647670,-2095.74,0.00016849,2]
[351033957,1738302647679,-500.0,0.00016849,2]
[351033958,1738302647689,-500.0,0.00016849,2]
[351033959,1738302647699,-420.0,0.00016886,2]
[351033960,1738302647708,-153.0,0.000169,2]
[351033961,1738302647720,-598.99,0.00016986,2]
[351033962,1738302647730,-500.0,0.00016986,2]
[351033963,1738302647740,-500.0,0.00016986,2]
[351033964,1738302647749,-500.0,0.00016986,2]
[351033965,1738302647759,-500.0,0.00016986,2]
[351033966,1738302647769,-500.0,0.00016986,2]
[351033967,1738302647778,-500.0,0.00016986,2]
[351033968,1738302647788,-500.0,0.00016986,2]
[351033969,1738302647799,-500.0,0.00016986,2]
[351033970,1738302647809,-500.0,0.00016986,2]
[351033971,1738302647819,-500.0,0.00016986,2]
[351033972,1738302647828,-500.0,0.00016986,2]
[351033973,1738302647837,-500.0,0.00016986,2]
[351033974,1738302647846,-500.0,0.00016986,2]
[351033975,1738302647857,-500.0,0.00016986,2]
[351033976,1738302647866,-500.0,0.00016986,2]
[351033977,1738302647876,-500.0,0.00016986,2]
[351033978,1738302647885,-500.0,0.00016986,2]
[351033979,1738302647894,-500.0,0.00016986,2]
[351033980,1738302647903,-505.77334746,0.00016986,2]
[351033981,1738302647912,-500.0,0.00016986,2]
[351033982,1738302647922,-500.0,0.00016986,2]
[351033983,1738302647931,-13398.71,0.00016986,2]
[351033984,1738302647940,-500.0,0.00016986,2]
[351033985,1738302647949,-500.0,0.00016986,2]
[351033986,1738302647959,-501.6,0.00016986,2]
[351033987,1738302647972,-1254.05,0.00016986,2]
[351033988,1738302647981,-500.0,0.00016986,2]
[351033989,1738302647990,-500.0,0.00016986,2]
[351033990,1738302647999,-680.56,0.00016986,2]
[351033991,1738302648009,-500.0,0.00016986,2]
[351033992,1738302648019,-510.89,0.00016986,2]
[351033993,1738302648028,-376.83116846,0.00016986,2]
[351033994,1738302648039,-2343.42,0.00016986,2]
[351033995,1738302648049,-1619.97,0.00016986,2]
[351033996,1738302648060,-500.0,0.00016986,2]
[351033997,1738302648071,-500.0,0.00016986,2]
[351033998,1738302648082,-500.0,0.00016986,2]
[351033999,1738302648093,-2443.38,0.00016986,2]
[351034000,1738302648103,-318.25729526,0.00016986,2]
[351034001,1738302648113,-500.0,0.00016986,2]
[351034002,1738302648123,-500.0,0.00016986,2]
[351034003,1738302648133,-1161.2,0.00016986,2]
[351034004,1738302648159,-3482.21,0.00016986,2]
[351034005,1738302648169,-304.25450017,0.00016986,2]
[351034006,1738302648179,-500.0,0.00016986,2]
[351034007,1738302648189,-482.30563152,0.00016986,2]
[351034008,1738302648198,-500.0,0.00016986,2]
[351034009,1738302648208,-1449.4,0.00016986,2]
[351034010,1738302648220,-500.0,0.00016986,2]
[351034011,1738302648230,-1199.42,0.00016986,2]
[351034012,1738302648240,-638.87,0.00016986,2]
[351034013,1738302648250,-783.73,0.00016986,2]
[351034014,1738302648259,-500.0,0.00016986,2]
[351034015,1738302648268,-500.0,0.00016986,2]
[351034016,1738302648278,-4491.12,0.00016986,2]
[351034017,1738302648287,-809.64,0.00016986,2]
[351034018,1738302648297,-2095.74,0.00016986,2]
[351034019,1738302648308,-500.0,0.00016986,2]
[351034020,1738302648318,-500.0,0.00016986,2]
[351034021,1738302648327,-217.6999129,0.00017068,2]
[351034022,1738302648337,-304.9231396,0.00017068,2]
[351034023,1738302648347,-215.5610874,0.00017068,2]
[351034024,1738302648357,-154.4000799,0.00017068,2]
[351034025,1738302648367,-215.5610874,0.00017068,2]
[351034026,1738302648376,-154.4000799,0.00017068,2]
[351034028,1738302648386,-215.5610874,0.00017068,2]
[351034030,1738302648396,-153.0,0.00017094,2]
[351034032,1738302648406,-500.0,0.00017122,2]
[351034034,1738302648415,-598.99,0.00017123,2]
[351034036,1738302648425,-500.0,0.00017123,2]
[351034038,1738302648435,-500.0,0.00017123,2]
[351034040,1738302648445,-500.0,0.00017123,2]
[351034042,1738302648455,-500.0,0.00017123,2]
[351034044,1738302648465,-500.0,0.00017123,2]
[351034046,1738302648476,-500.0,0.00017123,2]
[351034048,1738302648486,-500.0,0.00017123,2]
[351034050,1738302648495,-500.0,0.00017123,2]
[351034052,1738302648508,-500.0,0.00017123,2]
[351034054,1738302648519,-500.0,0.00017123,2]
[351034056,1738302648528,-500.0,0.00017123,2]
[351034057,1738302648538,-500.0,0.00017123,2]
[351034059,1738302648548,-500.0,0.00017123,2]
[351034061,1738302648557,-500.0,0.00017123,2]
[351034063,1738302648567,-504.9480489,0.00017123,2]
[351034065,1738302648576,-500.0,0.00017123,2]
[351034067,1738302648586,-500.0,0.00017123,2]
[351034069,1738302648596,-500.0,0.00017123,2]
[351034071,1738302648605,-13398.71,0.00017123,2]
[351034073,1738302648616,-500.0,0.00017123,2]
[351034075,1738302648626,-501.6,0.00017123,2]
[351034077,1738302648636,-1254.05,0.00017123,2]
[351034079,1738302648646,-500.0,0.00017123,2]
[351034081,1738302648656,-500.0,0.00017123,2]
[351034083,1738302648665,-680.56,0.00017123,2]
[351034085,1738302648675,-546.17,0.00017123,2]
[351034087,1738302648684,-510.89,0.00017123,2]
[351034089,1738302648693,-2343.42,0.00017123,2]
[351034091,1738302648703,-1619.97,0.00017123,2]
[351034093,1738302648715,-500.0,0.00017123,2]
[351034095,1738302648724,-500.0,0.00017123,2]
[351034097,1738302648733,-500.0,0.00017123,2]
[351034099,1738302648743,-2443.38,0.00017123,2]
[351034100,1738302648752,-500.0,0.00017123,2]
[351034102,1738302648761,-1161.2,0.00017123,2]
[351034104,1738302648772,-3482.21,0.00017123,2]
[351034106,1738302648781,-500.0,0.00017123,2]
[351034108,1738302648791,-500.0,0.00017123,2]
[351034110,1738302648801,-1449.4,0.00017123,2]
[351034112,1738302648810,-500.0,0.00017123,2]
[351034113,1738302648820,-1199.42,0.00017123,2]
[351034114,1738302648829,-638.87,0.00017123,2]
[351034115,1738302648838,-783.73,0.00017123,2]
[351034116,1738302648847,-500.0,0.00017123,2]
[351034117,1738302648857,-500.0,0.00017123,2]
[351034118,1738302648866,-4491.12,0.00017123,2]
[351034119,1738302648876,-809.64,0.00017123,2]
[351034120,1738302648886,-2095.74,0.00017123,2]
[351034121,1738302648896,-500.0,0.00017123,2]
[351034122,1738302648907,-500.0,0.00017123,2]
[351034123,1738302648917,-528.16479929,0.00017152,2]
[351034124,1738302648927,-500.0,0.00017259,2]
[351034125,1738302648937,-598.99,0.0001726,2]
[351034126,1738302648947,-500.0,0.0001726,2]
[351034127,1738302648957,-500.0,0.0001726,2]
[351034128,1738302648969,-500.0,0.0001726,2]
[351034129,1738302648979,-500.0,0.0001726,2]
[351034130,1738302648988,-500.0,0.0001726,2]
[351034131,1738302648998,-500.0,0.0001726,2]
[351034132,1738302649007,-500.0,0.0001726,2]
[351034133,1738302649017,-437.59,0.0001726,2]
[351034134,1738302649027,-500.0,0.0001726,2]
[351034135,1738302649036,-500.0,0.0001726,2]
[351034136,1738302649046,-500.0,0.0001726,2]
[351034137,1738302649056,-554.79110466,0.0001726,2]
[351034138,1738302649066,-500.0,0.0001726,2]
[351034139,1738302649076,-500.0,0.0001726,2]
[351034140,1738302649085,-500.0,0.0001726,2]
[351034141,1738302649094,-500.0,0.0001726,2]
[351034142,1738302649105,-13398.71,0.0001726,2]
[351034143,1738302649115,-500.0,0.0001726,2]
[351034144,1738302649124,-501.6,0.0001726,2]
[351034145,1738302649133,-1254.05,0.0001726,2]
[351034146,1738302649144,-500.0,0.0001726,2]
[351034147,1738302649155,-500.0,0.0001726,2]
[351034148,1738302649165,-680.56,0.0001726,2]
[351034149,1738302649175,-510.89,0.0001726,2]
[351034150,1738302649185,-2343.42,0.0001726,2]
[351034151,1738302649195,-1619.97,0.0001726,2]
[351034152,1738302649206,-500.0,0.0001726,2]
[351034153,1738302649217,-500.0,0.0001726,2]
[351034154,1738302649227,-500.0,0.0001726,2]
[351034155,1738302649237,-2443.38,0.0001726,2]
[351034156,1738302649247,-500.0,0.0001726,2]
[351034157,1738302649257,-1161.2,0.0001726,2]
[351034159,1738302649267,-3482.21,0.0001726,2]
[351034160,1738302649277,-500.0,0.0001726,2]
[351034161,1738302649287,-500.0,0.0001726,2]
[351034163,1738302649297,-1449.4,0.0001726,2]
[351034164,1738302649307,-500.0,0.0001726,2]
[351034166,1738302649317,-1199.42,0.0001726,2]
[351034167,1738302649326,-638.87,0.0001726,2]
[351034169,1738302649336,-783.73,0.0001726,2]
[351034171,1738302649345,-500.0,0.0001726,2]
[351034173,1738302649355,-500.0,0.0001726,2]
[351034175,1738302649365,-4491.12,0.0001726,2]
[351034177,1738302649374,-809.64,0.0001726,2]
[351034179,1738302649384,-2095.74,0.0001726,2]
[351034181,1738302649394,-500.0,0.0001726,2]
[351034183,1738302649404,-500.0,0.0001726,2]
[351034185,1738302649413,-6943.53,0.000173,2]
[351034187,1738302649424,-7557.79,0.000173,2]
[351034189,1738302649433,-153.0,0.00017339,2]
[351034191,1738302649444,-153.0,0.00017339,2]
[351034193,1738302649453,-156.0,0.00017339,2]
[351034195,1738302649464,-157.0,0.00017361,2]
[351034206,1738302649573,-157.0,0.00017361,2]
[351034208,1738302649584,-157.0,0.00017361,2]
[351034210,1738302649594,-157.0,0.00017361,2]
[351034212,1738302649604,-500.0,0.00017396,2]
[351034214,1738302649614,-598.99,0.00017397,2]
[351034216,1738302649624,-312.50620919,0.00017397,2]
[351034218,1738302649634,-360.9,0.00017397,2]
[351034220,1738302649646,-500.0,0.00017397,2]
[351034222,1738302649656,-500.0,0.00017397,2]
[351034224,1738302649665,-500.0,0.00017397,2]
[351034226,1738302649675,-500.0,0.00017397,2]
[351034228,1738302649684,-240.53,0.00017397,2]
[351034230,1738302649693,-500.0,0.00017397,2]
[351034232,1738302649705,-500.0,0.00017397,2]
[351034234,1738302649714,-500.0,0.00017397,2]
[351034236,1738302649723,-500.0,0.00017397,2]
[351034238,1738302649733,-365.3784492,0.00017397,2]
[351034240,1738302649742,-500.0,0.00017397,2]
[351034242,1738302649752,-13398.71,0.00017397,2]
[351034244,1738302649762,-500.0,0.00017397,2]
[351034246,1738302649771,-501.6,0.00017397,2]
[351034248,1738302649780,-1254.05,0.00017397,2]
[351034250,1738302649790,-500.0,0.00017397,2]
[351034252,1738302649799,-500.0,0.00017397,2]
[351034254,1738302649808,-680.56,0.00017397,2]
[351034256,1738302649818,-510.89,0.00017397,2]
[351034258,1738302649827,-2343.42,0.00017397,2]
[351034260,1738302649837,-1619.97,0.00017397,2]
[351034262,1738302649847,-500.0,0.00017397,2]
[351034264,1738302649857,-500.0,0.00017397,2]
[351034266,1738302649866,-500.0,0.00017397,2]
[351034268,1738302649876,-2443.38,0.00017397,2]
[351034270,1738302649886,-500.0,0.00017397,2]
[351034272,1738302649895,-1161.2,0.00017397,2]
[351034274,1738302649905,-3482.21,0.00017397,2]
[351034276,1738302649915,-500.0,0.00017397,2]
[351034278,1738302649923,-500.0,0.00017397,2]
[351034280,1738302649933,-1449.4,0.00017397,2]
[351034282,1738302649942,-500.0,0.00017397,2]
[351034284,1738302649952,-1199.42,0.00017397,2]
[351034286,1738302649961,-638.87,0.00017397,2]
[351034288,1738302649972,-783.73,0.00017397,2]
[351034290,1738302649984,-500.0,0.00017397,2]
[351034292,1738302649994,-500.0,0.00017397,2]
[351034294,1738302650003,-4491.12,0.00017397,2]
[351034296,1738302650013,-809.64,0.00017397,2]
[351034297,1738302650021,-2095.74,0.00017397,2]
[351034299,1738302650030,-500.0,0.00017397,2]
[351034301,1738302650040,-500.0,0.00017397,2]
[351034303,1738302650050,-151.0,0.000174,2]
[351034305,1738302650059,-652.3051728,0.00017494,2]
[351034307,1738302650071,-201.02983132,0.000175,2]
[351034309,1738302650080,-500.0,0.00017533,2]
[351034311,1738302650089,-598.99,0.00017534,2]
[351034313,1738302650098,-500.0,0.00017534,2]
[351034315,1738302650108,-500.0,0.00017534,2]
[351034318,1738302650119,-500.0,0.00017534,2]
[351034320,1738302650128,-500.0,0.00017534,2]
[351034321,1738302650138,-500.0,0.00017534,2]
[351034323,1738302650147,-500.0,0.00017534,2]
[351034326,1738302650159,-500.0,0.00017534,2]
[351034327,1738302650168,-524.26692336,0.00017534,2]
[351034329,1738302650178,-13398.71,0.00017534,2]
[351034331,1738302650187,-500.0,0.00017534,2]
[351034333,1738302650196,-501.6,0.00017534,2]
[351034335,1738302650205,-1254.05,0.00017534,2]
[351034337,1738302650214,-500.0,0.00017534,2]
[351034339,1738302650224,-500.0,0.00017534,2]
[351034341,1738302650233,-680.56,0.00017534,2]
[351034343,1738302650243,-510.89,0.00017534,2]
[351034345,1738302650252,-2343.42,0.00017534,2]
[351034347,1738302650261,-1619.97,0.00017534,2]
[351034349,1738302650270,-500.0,0.00017534,2]
[351034351,1738302650279,-500.0,0.00017534,2]
[351034353,1738302650288,-500.0,0.00017534,2]
[351034355,1738302650298,-2443.38,0.00017534,2]
[351034357,1738302650307,-500.0,0.00017534,2]
[351034359,1738302650316,-1161.2,0.00017534,2]
[351034361,1738302650325,-3482.21,0.00017534,2]
[351034363,1738302650335,-500.0,0.00017534,2]
[351034365,1738302650344,-500.0,0.00017534,2]
[351034367,1738302650353,-1449.4,0.00017534,2]
[351034369,1738302650362,-500.0,0.00017534,2]
[351034371,1738302650371,-1199.42,0.00017534,2]
[351034373,1738302650380,-638.87,0.00017534,2]
[351034375,1738302650390,-783.73,0.00017534,2]
[351034377,1738302650399,-500.0,0.00017534,2]
[351034379,1738302650408,-500.0,0.00017534,2]
[351034381,1738302650418,-4491.12,0.00017534,2]
[351034383,1738302650427,-809.64,0.00017534,2]
[351034385,1738302650439,-2095.74,0.00017534,2]
[351034387,1738302650448,-500.0,0.00017534,2]
[351034389,1738302650457,-500.0,0.00017534,2]
[351034391,1738302650467,-170.0,0.00017581,2]
[351034393,1738302650476,-170.0,0.00017581,2]
[351034395,1738302650485,-170.0,0.00017581,2]
[351034397,1738302650494,-171.07,0.00017581,2]
[351034399,1738302650505,-151.0,0.000176,2]
[351034401,1738302650516,-157.0,0.00017601,2]
[351034403,1738302650525,-157.0,0.00017601,2]
[351034405,1738302650534,-157.0,0.00017601,2]
[351034407,1738302650544,-157.0,0.00017601,2]
[351034409,1738302650554,-157.0,0.00017601,2]
[351034411,1738302650563,-157.0,0.00017601,2]
[351034413,1738302650573,-157.0,0.00017601,2]
[351034415,1738302650584,-157.0,0.00017601,2]
[351034417,1738302650593,-157.0,0.00017601,2]
[351034419,1738302650602,-160.99,0.00017601,2]
[351034421,1738302650611,-157.0,0.00017643,2]
[351034423,1738302650620,-157.0,0.00017643,2]
[351034425,1738302650630,-157.0,0.00017643,2]
[351034427,1738302650639,-157.0,0.00017643,2]
[351034429,1738302650648,-157.0,0.00017643,2]
[351034431,1738302650658,-157.0,0.00017643,2]
[351034433,1738302650667,-157.0,0.00017643,2]
[351034435,1738302650676,-157.0,0.00017643,2]
[351034437,1738302650686,-157.0,0.00017643,2]
[351034439,1738302650695,-157.0,0.00017643,2]
[351034441,1738302650705,-157.0,0.00017643,2]
[351034443,1738302650714,-157.0,0.00017643,2]
[351034445,1738302650725,-164.0,0.00017643,2]
[351034447,1738302650735,-154.0,0.00017643,2]
[351034449,1738302650744,-617.65844435,0.0001767,2]
[351034451,1738302650753,-598.99,0.00017671,2]
[351034453,1738302650763,-500.0,0.00017671,2]
[351034455,1738302650772,-500.0,0.00017671,2]
[351034457,1738302650782,-500.0,0.00017671,2]
[351034459,1738302650791,-500.0,0.00017671,2]
[351034461,1738302650800,-500.0,0.00017671,2]
[351034463,1738302650810,-166.83778104,0.00017671,2]
[351034464,1738302650822,-500.0,0.00017671,2]
[351034466,1738302650832,-13398.71,0.00017671,2]
[351034468,1738302650846,-500.0,0.00017671,2]
[351034471,1738302650856,-501.6,0.00017671,2]
[351034472,1738302650865,-1254.05,0.00017671,2]
[351034473,1738302650875,-500.0,0.00017671,2]
[351034475,1738302650884,-500.0,0.00017671,2]
[351034477,1738302650893,-680.56,0.00017671,2]
[351034479,1738302650903,-510.89,0.00017671,2]
[351034481,1738302650913,-2343.42,0.00017671,2]
[351034483,1738302650922,-1619.97,0.00017671,2]
[351034485,1738302650931,-500.0,0.00017671,2]
[351034487,1738302650941,-500.0,0.00017671,2]
[351034488,1738302650950,-2443.38,0.00017671,2]
[351034490,1738302650958,-500.0,0.00017671,2]
[351034492,1738302650969,-1161.2,0.00017671,2]
[351034494,1738302650978,-3482.21,0.00017671,2]
[351034496,1738302650987,-500.0,0.00017671,2]
[351034498,1738302650997,-500.0,0.00017671,2]
[351034500,1738302651006,-1449.4,0.00017671,2]
[351034502,1738302651016,-500.0,0.00017671,2]
[351034504,1738302651025,-1199.42,0.00017671,2]
[351034506,1738302651034,-638.87,0.00017671,2]
[351034508,1738302651043,-783.73,0.00017671,2]
[351034510,1738302651052,-500.0,0.00017671,2]
[351034512,1738302651062,-500.0,0.00017671,2]
[351034514,1738302651071,-4491.12,0.00017671,2]
[351034516,1738302651081,-809.64,0.00017671,2]
[351034518,1738302651091,-2095.74,0.00017671,2]
[351034519,1738302651100,-500.0,0.00017671,2]
[351034521,1738302651109,-500.0,0.00017671,2]
[351034523,1738302651119,-151.0,0.000177,2]
[351034525,1738302651128,-151.0,0.000178,2]
[351034527,1738302651137,-151.0,0.000178,2]
[351034529,1738302651147,-598.99,0.00017808,2]
[351034531,1738302651156,-500.0,0.00017808,2]
[351034533,1738302651167,-500.0,0.00017808,2]
[351034535,1738302651176,-500.0,0.00017808,2]
[351034537,1738302651186,-177.26,0.00017808,2]
[351034539,1738302651195,-500.0,0.00017808,2]
[351034541,1738302651205,-500.0,0.00017808,2]
[351034543,1738302651214,-13398.71,0.00017808,2]
[351034545,1738302651225,-500.0,0.00017808,2]
[351034547,1738302651234,-501.6,0.00017808,2]
[351034548,1738302651243,-1254.05,0.00017808,2]
[351034551,1738302651253,-500.0,0.00017808,2]
[351034552,1738302651263,-500.0,0.00017808,2]
[351034554,1738302651273,-680.56,0.00017808,2]
[351034556,1738302651282,-510.89,0.00017808,2]
[351034558,1738302651292,-2343.42,0.00017808,2]
[351034560,1738302651301,-1619.97,0.00017808,2]
[351034562,1738302651311,-500.0,0.00017808,2]
[351034564,1738302651320,-500.0,0.00017808,2]
[351034566,1738302651329,-2443.38,0.00017808,2]
[351034568,1738302651339,-500.0,0.00017808,2]
[351034570,1738302651348,-1161.2,0.00017808,2]
[351034572,1738302651357,-3482.21,0.00017808,2]
[351034574,1738302651367,-500.0,0.00017808,2]
[351034575,1738302651376,-500.0,0.00017808,2]
[351034577,1738302651385,-1449.4,0.00017808,2]
[351034579,1738302651395,-196.60851286,0.00017808,2]
[351034581,1738302651404,-1199.42,0.00017808,2]
[351034583,1738302651414,-638.87,0.00017808,2]
[351034585,1738302651424,-783.73,0.00017808,2]
[351034587,1738302651434,-500.0,0.00017808,2]
[351034589,1738302651443,-500.0,0.00017808,2]
[351034591,1738302651454,-4491.12,0.00017808,2]
[351034593,1738302651463,-809.64,0.00017808,2]
[351034594,1738302651474,-2095.74,0.00017808,2]
[351034596,1738302651483,-500.0,0.00017808,2]
[351034598,1738302651492,-500.0,0.00017808,2]
[351034600,1738302651501,-164.0,0.00017819,2]
[351034602,1738302651511,-164.0,0.00017819,2]
[351034604,1738302651525,-166.31,0.00017819,2]
[351034606,1738302651534,-170.22,0.00017838,2]
[351034608,1738302651542,-211.79256302,0.000179,2]
[351034610,1738302651552,-151.0,0.000179,2]
[351034612,1738302651561,-151.0,0.000179,2]
[351034613,1738302651570,-598.99,0.00017945,2]
[351034615,1738302651579,-627.94560935,0.00017945,2]
[351034617,1738302651591,-500.0,0.00017945,2]
[351034619,1738302651600,-500.0,0.00017945,2]
[351034621,1738302651609,-500.0,0.00017945,2]
[351034623,1738302651620,-356.6300181,0.00017945,2]
[351034625,1738302651630,-13398.71,0.00017945,2]
[351034627,1738302651640,-500.0,0.00017945,2]
[351034628,1738302651649,-501.6,0.00017945,2]
[351034630,1738302651659,-1254.05,0.00017945,2]
[351034632,1738302651668,-363.16,0.00017945,2]
[351034634,1738302651678,-500.0,0.00017945,2]
[351034636,1738302651687,-680.56,0.00017945,2]
[351034638,1738302651696,-510.89,0.00017945,2]
[351034640,1738302651705,-2343.42,0.00017945,2]
[351034641,1738302651714,-1619.97,0.00017945,2]
[351034643,1738302651724,-500.0,0.00017945,2]
[351034645,1738302651733,-500.0,0.00017945,2]
[351034647,1738302651742,-2443.38,0.00017945,2]
[351034649,1738302651752,-500.0,0.00017945,2]
[351034651,1738302651761,-1161.2,0.00017945,2]
[351034653,1738302651770,-3482.21,0.00017945,2]
[351034655,1738302651780,-500.0,0.00017945,2]
[351034656,1738302651790,-500.0,0.00017945,2]
[351034658,1738302651799,-1449.4,0.00017945,2]
[351034660,1738302651809,-1199.42,0.00017945,2]
[351034670,1738302651907,-638.87,0.00017945,2]
[351034672,1738302651917,-783.73,0.00017945,2]
[351034674,1738302651928,-500.0,0.00017945,2]
[351034676,1738302651939,-500.0,0.00017945,2]
[351034678,1738302651948,-4491.12,0.00017945,2]
[351034680,1738302651959,-809.64,0.00017945,2]
[351034682,1738302651968,-2095.74,0.00017945,2]
[351034684,1738302651977,-500.0,0.00017945,2]
[351034685,1738302651986,-500.0,0.00017945,2]
[351034687,1738302651995,-528.16479929,0.00018005,2]
[351034689,1738302652004,-598.99,0.00018082,2]
[351034691,1738302652013,-500.0,0.00018082,2]
[351034693,1738302652023,-500.0,0.00018082,2]
[351034695,1738302652032,-500.0,0.00018082,2]
[351034697,1738302652041,-13398.71,0.00018082,2]
[351034699,1738302652050,-500.0,0.00018082,2]
[351034701,1738302652059,-501.6,0.00018082,2]
[351034703,1738302652068,-1254.05,0.00018082,2]
[351034705,1738302652078,-500.0,0.00018082,2]
[351034706,1738302652086,-680.56,0.00018082,2]
[351034708,1738302652097,-510.89,0.00018082,2]
[351034710,1738302652110,-2343.42,0.00018082,2]
[351034712,1738302652120,-1619.97,0.00018082,2]
[351034714,1738302652130,-500.0,0.00018082,2]
[351034716,1738302652140,-500.0,0.00018082,2]
[351034718,1738302652149,-2443.38,0.00018082,2]
[351034720,1738302652159,-500.0,0.00018082,2]
[351034722,1738302652168,-1161.2,0.00018082,2]
[351034724,1738302652178,-3482.21,0.00018082,2]
[351034726,1738302652187,-500.0,0.00018082,2]
[351034728,1738302652197,-500.0,0.00018082,2]
[351034729,1738302652207,-1449.4,0.00018082,2]
[351034731,1738302652218,-1199.42,0.00018082,2]
[351034733,1738302652227,-638.87,0.00018082,2]
[351034735,1738302652237,-783.73,0.00018082,2]
[351034737,1738302652246,-500.0,0.00018082,2]
[351034739,1738302652256,-500.0,0.00018082,2]
[351034741,1738302652265,-4491.12,0.00018082,2]
[351034743,1738302652275,-809.64,0.00018082,2]
[351034745,1738302652285,-2095.74,0.00018082,2]
[351034747,1738302652294,-500.0,0.00018082,2]
[351034749,1738302652303,-500.0,0.00018082,2]
[351034751,1738302652312,-151.10576729,0.00018122,2]
[351034753,1738302652321,-500.0,0.00018193,2]
[351034754,1738302652330,-500.0,0.00018193,2]
[351034756,1738302652339,-500.0,0.00018193,2]
[351034758,1738302652348,-157.0,0.00018193,2]
[351034760,1738302652359,-157.0,0.00018193,2]
[351034762,1738302652368,-157.0,0.00018193,2]
[351034764,1738302652377,-157.0,0.00018193,2]
[351034766,1738302652386,-154.0,0.00018193,2]
[351034768,1738302652395,-151.0,0.000182,2]
[351034770,1738302652404,-500.0,0.000182,2]
[351034771,1738302652413,-500.0,0.000182,2]
[351034773,1738302652422,-500.0,0.000182,2]
[351034775,1738302652431,-625.94989741,0.000182,2]
[351034777,1738302652441,-500.0,0.000182,2]
[351034779,1738302652450,-500.0,0.00018219,2]
[351034781,1738302652461,-500.0,0.00018219,2]
[351034783,1738302652474,-500.0,0.00018219,2]
[351034785,1738302652483,-161.78944155,0.00018219,2]
[351034787,1738302652492,-151.28146981,0.00018219,2]
[351034789,1738302652501,-598.99,0.00018219,2]
[351034791,1738302652512,-500.0,0.00018219,2]
[351034793,1738302652522,-500.0,0.00018219,2]
[351034795,1738302652531,-417.21300228,0.00018219,2]
[351034797,1738302652540,-13398.71,0.00018219,2]
[351034799,1738302652551,-500.0,0.00018219,2]
[351034801,1738302652560,-501.6,0.00018219,2]
[351034803,1738302652569,-1254.05,0.00018219,2]
[351034804,1738302652579,-500.0,0.00018219,2]
[351034806,1738302652588,-680.56,0.00018219,2]
[351034808,1738302652598,-510.89,0.00018219,2]
[351034810,1738302652607,-2343.42,0.00018219,2]
[351034812,1738302652617,-1619.97,0.00018219,2]
[351034814,1738302652627,-500.0,0.00018219,2]
[351034816,1738302652636,-500.0,0.00018219,2]